[Event "January 9 Early 2024"]
[Site "https://www.chess.com"]
[Date "2024.01.11"]
[Round "8"]
[White "Zavgorodniy, Sergiy"]
[Black "Rangel, Daniel"]
[Result "1-0"]
[Board "206"]
[TimeControl "180+1"]
[WhiteFideId "14110148"]
[BlackFideId "2124475"]
[WhiteElo "2624"]
[BlackElo "2496"]
[WhiteTeam "UKR"]
[BlackTeam "BRA"]
[WhiteClock "0:00:12"]
[BlackClock "0:00:01"]

1. e4 {[%clk 0:03:00]}  c5 {[%clk 0:02:59]} 2. Nf3 {[%clk 0:02:44]}  g6 {[%clk 0:02:59]} 3. c3 {[%clk 0:02:34]}  Bg7 {[%clk 0:02:59]} 4. d4 {[%clk 0:02:33]}  cxd4 {[%clk 0:03:00]} 5. cxd4 {[%clk 0:02:34]}  d5 {[%clk 0:03:00]} 6. exd5 {[%clk 0:02:34]}  Nf6 {[%clk 0:03:00]} 7. Bb5+ {[%clk 0:02:35]}  Nbd7 {[%clk 0:02:58]} 8. d6 {[%clk 0:02:35]}  exd6 {[%clk 0:02:58]} 9. Qe2+ {[%clk 0:02:35]}  Qe7 {[%clk 0:02:59]} 10. Bf4 {[%clk 0:02:36]}  Ne4 {[%clk 0:02:45]} 11. O-O {[%clk 0:02:04]}  O-O {[%clk 0:02:42]} 12. Re1 {[%clk 0:02:04]}  d5 {[%clk 0:02:34]} 13. Nc3 {[%clk 0:02:00]}  Ndf6 {[%clk 0:02:31]} 14. Bg5 {[%clk 0:01:59]}  Qd6 {[%clk 0:02:09]} 15. Ne5 {[%clk 0:01:41]}  Nxc3 {[%clk 0:02:01]} 16. bxc3 {[%clk 0:01:42]}  Ne4 {[%clk 0:02:00]} 17. Bd2 {[%clk 0:01:39]}  Nxd2 {[%clk 0:01:56]} 18. Qxd2 {[%clk 0:01:39]}  a6 {[%clk 0:01:57]} 19. Bd3 {[%clk 0:01:35]}  b5 {[%clk 0:01:55]} 20. a4 {[%clk 0:01:33]}  Bd7 {[%clk 0:01:39]} 21. Nxd7 {[%clk 0:01:10]}  Qxd7 {[%clk 0:01:40]} 22. axb5 {[%clk 0:01:10]}  axb5 {[%clk 0:01:39]} 23. Qb2 {[%clk 0:01:11]}  Rxa1 {[%clk 0:01:28]} 24. Rxa1 {[%clk 0:01:12]}  Rb8 {[%clk 0:01:27]} 25. Rb1 {[%clk 0:01:09]}  b4 {[%clk 0:01:20]} 26. cxb4 {[%clk 0:01:08]}  Qa7 {[%clk 0:01:21]} 27. b5 {[%clk 0:01:02]}  Bxd4 {[%clk 0:01:13]} 28. Qd2 {[%clk 0:01:02]}  Bb6 {[%clk 0:01:05]} 29. Bf1 {[%clk 0:01:00]}  Rd8 {[%clk 0:01:04]} 30. g3 {[%clk 0:00:58]}  h5 {[%clk 0:01:01]} 31. h4 {[%clk 0:00:57]}  Qc7 {[%clk 0:01:00]} 32. Rb3 {[%clk 0:00:52]}  Qe5 {[%clk 0:00:54]} 33. Bg2 {[%clk 0:00:40]}  d4 {[%clk 0:00:35]} 34. Qd3 {[%clk 0:00:35]}  Rc8 {[%clk 0:00:28]} 35. Bc6 {[%clk 0:00:34]}  Rc7 {[%clk 0:00:23]} 36. Rb1 {[%clk 0:00:27]}  Re7 {[%clk 0:00:18]} 37. Kg2 {[%clk 0:00:22]}  Qe2 {[%clk 0:00:17]} 38. Rd1 {[%clk 0:00:22]}  Qxd3 {[%clk 0:00:16]} 39. Rxd3 {[%clk 0:00:23]}  Re2 {[%clk 0:00:16]} 40. Kf3 {[%clk 0:00:20]}  Rb2 {[%clk 0:00:16]} 41. Ra3 {[%clk 0:00:19]}  d3 {[%clk 0:00:15]} 42. Rxd3 {[%clk 0:00:20]}  Rxf2+ {[%clk 0:00:15]} 43. Ke4 {[%clk 0:00:20]}  Kg7 {[%clk 0:00:15]} 44. Kd5 {[%clk 0:00:20]}  Rg2 {[%clk 0:00:12]} 45. Kd6 {[%clk 0:00:19]}  Rg1 {[%clk 0:00:12]} 46. Kd7 {[%clk 0:00:18]}  Bf2 {[%clk 0:00:12]} 47. Rf3 {[%clk 0:00:16]}  Bxg3 {[%clk 0:00:10]} 48. b6 {[%clk 0:00:16]}  Bh2 {[%clk 0:00:09]} 49. b7 {[%clk 0:00:16]}  Rg4 {[%clk 0:00:08]} 50. Bd5 {[%clk 0:00:15]}  f5 {[%clk 0:00:07]} 51. Rh3 {[%clk 0:00:13]}  Be5 {[%clk 0:00:06]} 52. Ke6 {[%clk 0:00:13]}  Bb8 {[%clk 0:00:05]} 53. Bf3 {[%clk 0:00:13]}  Rb4 {[%clk 0:00:04]} 54. Bc6 {[%clk 0:00:13]}  Kh6 {[%clk 0:00:02]} 55. Rh1 {[%clk 0:00:13]}  Rb6 {[%clk 0:00:01]} 56. Kd7 {[%clk 0:00:12]}  g5 {[%clk 0:00:01]} 57. hxg5+ {[%clk 0:00:11]}  Kxg5 {[%clk 0:00:02]} 58. Rg1+ {[%clk 0:00:11]}  Kf4 {[%clk 0:00:01]} 59. Rg8 {[%clk 0:00:12]} 1-0

[Event "January 9 Early 2024"]
[Site "https://www.chess.com"]
[Date "2024.01.11"]
[Round "8"]
[White "Daneshvar, Bardiya"]
[Black "Kozak, Antoni"]
[Result "1-0"]
[Board "207"]
[TimeControl "180+1"]
[WhiteFideId "12576468"]
[BlackFideId "21832030"]
[WhiteElo "2948"]
[BlackElo "2761"]
[WhiteTeam "IRI"]
[BlackTeam "POL"]
[WhiteClock "0:00:17"]
[BlackClock "0:00:03"]

1. b3 {[%clk 0:03:00]}  Nf6 {[%clk 0:02:58]} 2. Bb2 {[%clk 0:03:01]}  g6 {[%clk 0:02:58]} 3. g3 {[%clk 0:03:01]}  Bg7 {[%clk 0:02:58]} 4. Bg2 {[%clk 0:03:02]}  O-O {[%clk 0:02:59]} 5. Nf3 {[%clk 0:03:03]}  d6 {[%clk 0:02:57]} 6. d4 {[%clk 0:03:03]}  Nbd7 {[%clk 0:02:46]} 7. O-O {[%clk 0:03:02]}  a5 {[%clk 0:02:45]} 8. c4 {[%clk 0:03:02]}  a4 {[%clk 0:02:43]} 9. b4 {[%clk 0:03:01]}  Nb6 {[%clk 0:02:38]} 10. Na3 {[%clk 0:03:00]}  Bf5 {[%clk 0:02:38]} 11. Nd2 {[%clk 0:02:59]}  c6 {[%clk 0:02:35]} 12. e4 {[%clk 0:02:58]}  Bg4 {[%clk 0:02:35]} 13. Qc2 {[%clk 0:02:57]}  Qc8 {[%clk 0:02:32]} 14. c5 {[%clk 0:02:56]}  Nbd7 {[%clk 0:02:24]} 15. Nac4 {[%clk 0:02:55]}  Ne8 {[%clk 0:02:16]} 16. a3 {[%clk 0:02:54]}  d5 {[%clk 0:01:56]} 17. exd5 {[%clk 0:02:50]}  cxd5 {[%clk 0:01:57]} 18. Ne3 {[%clk 0:02:50]}  Ndf6 {[%clk 0:01:43]} 19. Nxd5 {[%clk 0:02:49]}  Nxd5 {[%clk 0:01:43]} 20. Bxd5 {[%clk 0:02:50]}  Nc7 {[%clk 0:01:39]} 21. Bg2 {[%clk 0:02:45]}  Bh3 {[%clk 0:01:39]} 22. Qe4 {[%clk 0:02:42]}  Bxg2 {[%clk 0:01:38]} 23. Kxg2 {[%clk 0:02:43]}  e6 {[%clk 0:01:38]} 24. Nc4 {[%clk 0:02:42]}  Nd5 {[%clk 0:01:35]} 25. h4 {[%clk 0:02:38]}  Qc6 {[%clk 0:01:35]} 26. Qf3 {[%clk 0:02:36]}  h5 {[%clk 0:01:27]} 27. Ne5 {[%clk 0:02:31]}  Qb5 {[%clk 0:01:19]} 28. Qd3 {[%clk 0:02:28]}  Qe8 {[%clk 0:01:17]} 29. b5 {[%clk 0:02:26]}  Ra5 {[%clk 0:01:10]} 30. b6 {[%clk 0:02:24]}  Bxe5 {[%clk 0:01:09]} 31. dxe5 {[%clk 0:02:25]}  Rxc5 {[%clk 0:01:09]} 32. Bd4 {[%clk 0:02:19]}  Qc6 {[%clk 0:01:08]} 33. Kh2 {[%clk 0:02:17]}  Rc4 {[%clk 0:01:04]} 34. Ra2 {[%clk 0:02:09]}  Rc8 {[%clk 0:01:04]} 35. Rb2 {[%clk 0:02:08]}  Ne7 {[%clk 0:00:59]} 36. Be3 {[%clk 0:02:07]}  Nf5 {[%clk 0:00:57]} 37. Bg5 {[%clk 0:02:07]}  Rc3 {[%clk 0:00:53]} 38. Qd2 {[%clk 0:01:59]}  Rxa3 {[%clk 0:00:49]} 39. Bf6 {[%clk 0:01:59]}  Rc3 {[%clk 0:00:30]} 40. Rd1 {[%clk 0:01:59]}  Rf8 {[%clk 0:00:29]} 41. Qd8 {[%clk 0:01:48]}  a3 {[%clk 0:00:20]} 42. Rbd2 {[%clk 0:01:34]}  Ng7 {[%clk 0:00:06]} 43. Qe7 {[%clk 0:01:23]}  Rc2 {[%clk 0:00:06]} 44. Qxa3 {[%clk 0:01:17]}  Rxd2 {[%clk 0:00:06]} 45. Rxd2 {[%clk 0:01:17]}  Qxb6 {[%clk 0:00:04]} 46. Qd6 {[%clk 0:01:12]}  Qc6 {[%clk 0:00:03]} 47. Qe7 {[%clk 0:01:07]}  Nf5 {[%clk 0:00:03]} 48. Qb4 {[%clk 0:01:00]}  b5 {[%clk 0:00:03]} 49. Rb2 {[%clk 0:00:59]}  Rb8 {[%clk 0:00:02]} 50. Rd2 {[%clk 0:00:55]}  Qb6 {[%clk 0:00:02]} 51. Rc2 {[%clk 0:00:49]}  Qb7 {[%clk 0:00:02]} 52. Rb2 {[%clk 0:00:42]}  Qb6 {[%clk 0:00:02]} 53. Bg5 {[%clk 0:00:41]}  Nd4 {[%clk 0:00:02]} 54. Qc3 {[%clk 0:00:28]}  Re8 {[%clk 0:00:01]} 55. Rd2 {[%clk 0:00:22]}  Nf5 {[%clk 0:00:01]} 56. Qd3 {[%clk 0:00:21]}  Qb7 {[%clk 0:00:02]} 57. Rb2 {[%clk 0:00:21]}  Qc8 {[%clk 0:00:02]} 58. Qxb5 {[%clk 0:00:20]}  Rf8 {[%clk 0:00:02]} 59. Qd3 {[%clk 0:00:20]}  Re8 {[%clk 0:00:03]} 60. f3 {[%clk 0:00:19]}  Qa8 {[%clk 0:00:03]} 61. g4 {[%clk 0:00:19]}  Ng7 {[%clk 0:00:04]} 62. Bf6 {[%clk 0:00:19]}  Qc8 {[%clk 0:00:04]} 63. Qe3 {[%clk 0:00:18]}  hxg4 {[%clk 0:00:03]} 64. Qh6 {[%clk 0:00:17]} 1-0

[Event "January 9 Early 2024"]
[Site "https://www.chess.com"]
[Date "2024.01.11"]
[Round "8"]
[White "De Sousa, Daniel Aguiar"]
[Black "Luukkonen, Tommi"]
[Result "0-1"]
[Board "209"]
[TimeControl "180+1"]
[WhiteFideId "44736797"]
[BlackFideId "501808"]
[WhiteElo "2052"]
[BlackElo "2320"]
[WhiteTeam "BRA"]
[BlackTeam "FIN"]
[WhiteClock "0:00:17"]
[BlackClock "0:00:06"]

1. d4 {[%clk 0:03:00]}  Nf6 {[%clk 0:02:58]} 2. Nf3 {[%clk 0:02:59]}  g6 {[%clk 0:02:57]} 3. e3 {[%clk 0:02:59]}  Bg7 {[%clk 0:02:56]} 4. Bd3 {[%clk 0:02:58]}  c5 {[%clk 0:02:56]} 5. b3 {[%clk 0:02:56]}  cxd4 {[%clk 0:02:55]} 6. exd4 {[%clk 0:02:57]}  O-O {[%clk 0:02:54]} 7. O-O {[%clk 0:02:56]}  d5 {[%clk 0:02:53]} 8. h3 {[%clk 0:02:55]}  Nc6 {[%clk 0:02:53]} 9. a3 {[%clk 0:02:55]}  Ne4 {[%clk 0:02:53]} 10. Bb2 {[%clk 0:02:49]}  Bf5 {[%clk 0:02:52]} 11. Nbd2 {[%clk 0:02:40]}  Rc8 {[%clk 0:02:48]} 12. Ne5 {[%clk 0:02:29]}  Qc7 {[%clk 0:02:30]} 13. Nxc6 {[%clk 0:01:55]}  Qxc6 {[%clk 0:02:30]} 14. Rc1 {[%clk 0:01:51]}  Rfd8 {[%clk 0:02:21]} 15. Re1 {[%clk 0:01:33]}  e6 {[%clk 0:02:14]} 16. a4 {[%clk 0:01:27]}  Qb6 {[%clk 0:01:58]} 17. Nxe4 {[%clk 0:01:10]}  dxe4 {[%clk 0:01:53]} 18. Bc4 {[%clk 0:01:04]}  Bxd4 {[%clk 0:01:49]} 19. Bxd4 {[%clk 0:01:02]}  Rxd4 {[%clk 0:01:50]} 20. Qe2 {[%clk 0:01:02]}  e5 {[%clk 0:01:12]} 21. c3 {[%clk 0:01:00]}  Rd6 {[%clk 0:01:03]} 22. g4 {[%clk 0:00:59]}  Be6 {[%clk 0:01:03]} 23. Bxe6 {[%clk 0:00:57]}  Rxe6 {[%clk 0:01:02]} 24. Qxe4 {[%clk 0:00:52]}  Qxb3 {[%clk 0:01:01]} 25. c4 {[%clk 0:00:49]}  Qb6 {[%clk 0:01:00]} 26. Rb1 {[%clk 0:00:43]}  Qc6 {[%clk 0:00:54]} 27. Rxb7 {[%clk 0:00:41]}  a5 {[%clk 0:00:49]} 28. Rb5 {[%clk 0:00:36]}  Qxc4 {[%clk 0:00:40]} 29. Qxc4 {[%clk 0:00:20]}  Rxc4 {[%clk 0:00:41]} 30. Rbxe5 {[%clk 0:00:19]}  Rxe5 {[%clk 0:00:39]} 31. Rxe5 {[%clk 0:00:20]}  Rxa4 {[%clk 0:00:40]} 32. Kg2 {[%clk 0:00:19]}  Ra3 {[%clk 0:00:39]} 33. Re8+ {[%clk 0:00:18]}  Kg7 {[%clk 0:00:39]} 34. Ra8 {[%clk 0:00:19]}  Kf6 {[%clk 0:00:39]} 35. f3 {[%clk 0:00:20]}  Ke5 {[%clk 0:00:38]} 36. Kg3 {[%clk 0:00:20]}  f5 {[%clk 0:00:20]} 37. g5 {[%clk 0:00:19]}  Ra1 {[%clk 0:00:18]} 38. Re8+ {[%clk 0:00:17]}  Kd4 {[%clk 0:00:18]} 39. Re7 {[%clk 0:00:16]}  a4 {[%clk 0:00:13]} 40. Rxh7 {[%clk 0:00:15]}  a3 {[%clk 0:00:13]} 41. h4 {[%clk 0:00:15]}  a2 {[%clk 0:00:10]} 42. Kf4 {[%clk 0:00:15]}  Rh1 {[%clk 0:00:08]} 43. Rd7+ {[%clk 0:00:13]}  Kc5 {[%clk 0:00:07]} 44. Ra7 {[%clk 0:00:13]}  a1=Q {[%clk 0:00:06]} 45. Rxa1 {[%clk 0:00:14]}  Rxa1 {[%clk 0:00:06]} 46. h5 {[%clk 0:00:14]}  Ra4+ {[%clk 0:00:06]} 47. Ke5 {[%clk 0:00:14]}  gxh5 {[%clk 0:00:07]} 48. g6 {[%clk 0:00:14]}  h4 {[%clk 0:00:06]} 49. Kxf5 {[%clk 0:00:14]}  h3 {[%clk 0:00:06]} 50. g7 {[%clk 0:00:15]}  Ra8 {[%clk 0:00:06]} 51. Kg4 {[%clk 0:00:15]}  h2 {[%clk 0:00:06]} 52. f4 {[%clk 0:00:15]}  h1=Q {[%clk 0:00:06]} 53. f5 {[%clk 0:00:16]}  Qg2+ {[%clk 0:00:06]} 54. Kf4 {[%clk 0:00:16]}  Qxg7 {[%clk 0:00:05]} 55. f6 {[%clk 0:00:17]}  Ra4+ {[%clk 0:00:05]} 56. Kf5 {[%clk 0:00:17]}  Qd7+ {[%clk 0:00:05]} 57. Kg6 {[%clk 0:00:18]}  Rg4+ {[%clk 0:00:06]} 58. Kh6 {[%clk 0:00:18]}  Qf5 {[%clk 0:00:05]} 59. f7 {[%clk 0:00:17]}  Qg6# {[%clk 0:00:06]} 0-1

[Event "January 9 Early 2024"]
[Site "https://www.chess.com"]
[Date "2024.01.11"]
[Round "8"]
[White "Onufrienko, Vladislav"]
[Black "Ioannidis, Evgenios"]
[Result "1-0"]
[Board "210"]
[TimeControl "180+1"]
[WhiteFideId "13804332"]
[BlackFideId "4229274"]
[WhiteElo "2615"]
[BlackElo "2776"]
[WhiteTeam "KGZ"]
[BlackTeam "GRE"]
[WhiteClock "0:00:05"]
[BlackClock "0:00:08"]

1. e4 {[%clk 0:03:00]}  e5 {[%clk 0:02:59]} 2. Nf3 {[%clk 0:03:00]}  Nc6 {[%clk 0:03:00]} 3. Nc3 {[%clk 0:03:01]}  Nf6 {[%clk 0:03:00]} 4. h3 {[%clk 0:03:02]}  d5 {[%clk 0:03:00]} 5. exd5 {[%clk 0:03:03]}  Nxd5 {[%clk 0:03:00]} 6. Bb5 {[%clk 0:03:04]}  Nxc3 {[%clk 0:03:01]} 7. bxc3 {[%clk 0:03:05]}  Bd6 {[%clk 0:03:01]} 8. O-O {[%clk 0:03:04]}  O-O {[%clk 0:03:02]} 9. Re1 {[%clk 0:03:05]}  Re8 {[%clk 0:02:43]} 10. d4 {[%clk 0:03:05]}  exd4 {[%clk 0:02:43]} 11. Rxe8+ {[%clk 0:03:05]}  Qxe8 {[%clk 0:02:43]} 12. cxd4 {[%clk 0:03:06]}  Bd7 {[%clk 0:02:34]} 13. Bd3 {[%clk 0:03:00]}  Nb4 {[%clk 0:02:30]} 14. Bc4 {[%clk 0:02:53]}  Bf5 {[%clk 0:02:15]} 15. c3 {[%clk 0:02:25]}  Nc2 {[%clk 0:02:14]} 16. Ng5 {[%clk 0:02:06]}  Qc6 {[%clk 0:01:51]} 17. Bxf7+ {[%clk 0:01:48]}  Kf8 {[%clk 0:01:51]} 18. Be6 {[%clk 0:01:21]}  Bg6 {[%clk 0:01:41]} 19. Rb1 {[%clk 0:01:13]}  Ne1 {[%clk 0:01:34]} 20. d5 {[%clk 0:01:02]}  Qxc3 {[%clk 0:01:14]} 21. Rb3 {[%clk 0:01:02]}  Qe5 {[%clk 0:01:11]} 22. f4 {[%clk 0:00:49]}  Bc5+ {[%clk 0:00:49]} 23. Kf1 {[%clk 0:00:49]}  Qd6 {[%clk 0:00:41]} 24. Qxe1 {[%clk 0:00:49]}  h6 {[%clk 0:00:30]} 25. Nf3 {[%clk 0:00:39]}  Bc2 {[%clk 0:00:30]} 26. Ne5 {[%clk 0:00:22]}  Qa6+ {[%clk 0:00:23]} 27. Qe2 {[%clk 0:00:17]}  Qxe2+ {[%clk 0:00:23]} 28. Kxe2 {[%clk 0:00:18]}  Bxb3 {[%clk 0:00:23]} 29. axb3 {[%clk 0:00:19]}  Ke7 {[%clk 0:00:21]} 30. Bb2 {[%clk 0:00:18]}  c6 {[%clk 0:00:12]} 31. Ng6+ {[%clk 0:00:18]}  Kd8 {[%clk 0:00:12]} 32. Bxg7 {[%clk 0:00:15]}  cxd5 {[%clk 0:00:13]} 33. Bxd5 {[%clk 0:00:16]}  Kc7 {[%clk 0:00:13]} 34. f5 {[%clk 0:00:15]}  Rd8 {[%clk 0:00:12]} 35. Be6 {[%clk 0:00:13]}  b5 {[%clk 0:00:12]} 36. f6 {[%clk 0:00:12]}  Bd4 {[%clk 0:00:12]} 37. g4 {[%clk 0:00:07]}  Rd6 {[%clk 0:00:13]} 38. Bf5 {[%clk 0:00:05]}  Bxf6 {[%clk 0:00:13]} 39. Bxh6 {[%clk 0:00:05]}  Kb6 {[%clk 0:00:11]} 40. Bf4 {[%clk 0:00:06]}  Rc6 {[%clk 0:00:11]} 41. Be3+ {[%clk 0:00:06]}  Ka5 {[%clk 0:00:11]} 42. Nf4 {[%clk 0:00:06]}  Be5 {[%clk 0:00:07]} 43. Nd3 {[%clk 0:00:06]}  Bc3 {[%clk 0:00:07]} 44. g5 {[%clk 0:00:05]}  b4 {[%clk 0:00:06]} 45. h4 {[%clk 0:00:05]}  Rc7 {[%clk 0:00:06]} 46. h5 {[%clk 0:00:05]}  Rd7 {[%clk 0:00:04]} 47. Bxd7 {[%clk 0:00:04]}  a6 {[%clk 0:00:04]} 48. Bf5 {[%clk 0:00:04]}  Kb5 {[%clk 0:00:01]} 49. h6 {[%clk 0:00:04]}  a5 {[%clk 0:00:02]} 50. Bd7+ {[%clk 0:00:04]}  Ka6 {[%clk 0:00:02]} 51. Ba4 {[%clk 0:00:04]}  Bh8 {[%clk 0:00:02]} 52. g6 {[%clk 0:00:04]}  Bf6 {[%clk 0:00:03]} 53. g7 {[%clk 0:00:03]}  Bg5 {[%clk 0:00:04]} 54. g8=Q {[%clk 0:00:03]}  Bxe3 {[%clk 0:00:05]} 55. Qa8+ {[%clk 0:00:03]}  Kb6 {[%clk 0:00:04]} 56. Qb8+ {[%clk 0:00:03]}  Ka6 {[%clk 0:00:05]} 57. Qb5+ {[%clk 0:00:03]}  Ka7 {[%clk 0:00:05]} 58. Kxe3 {[%clk 0:00:03]}  Ka8 {[%clk 0:00:04]} 59. Qxa5+ {[%clk 0:00:04]}  Kb8 {[%clk 0:00:05]} 60. Qxb4+ {[%clk 0:00:04]}  Ka7 {[%clk 0:00:06]} 61. Qc5+ {[%clk 0:00:05]}  Ka6 {[%clk 0:00:07]} 62. Bb5+ {[%clk 0:00:05]}  Ka5 {[%clk 0:00:08]} 63. b4# {[%clk 0:00:05]} 1-0

[Event "January 9 Early 2024"]
[Site "https://www.chess.com"]
[Date "2024.01.11"]
[Round "8"]
[White "Van Foreest, Jorden"]
[Black "Klekowski, Maciej"]
[Result "0-1"]
[Board "212"]
[TimeControl "180+1"]
[WhiteFideId "1039784"]
[BlackFideId "1132717"]
[WhiteElo "3005"]
[BlackElo "2877"]
[WhiteTeam "NED"]
[BlackTeam "POL"]
[WhiteClock "0:00:02"]
[BlackClock "0:00:03"]

1. e4 {[%clk 0:03:00]}  c5 {[%clk 0:02:59]} 2. Nf3 {[%clk 0:03:01]}  e6 {[%clk 0:02:59]} 3. c3 {[%clk 0:02:59]}  Nf6 {[%clk 0:02:59]} 4. e5 {[%clk 0:02:59]}  Nd5 {[%clk 0:02:59]} 5. g3 {[%clk 0:02:59]}  Nc6 {[%clk 0:02:57]} 6. Bg2 {[%clk 0:02:59]}  d6 {[%clk 0:02:54]} 7. exd6 {[%clk 0:03:00]}  Bxd6 {[%clk 0:02:55]} 8. d4 {[%clk 0:02:59]}  O-O {[%clk 0:02:52]} 9. O-O {[%clk 0:02:58]}  b6 {[%clk 0:02:45]} 10. dxc5 {[%clk 0:02:51]}  bxc5 {[%clk 0:02:43]} 11. Qe2 {[%clk 0:02:49]}  Qc7 {[%clk 0:02:37]} 12. Na3 {[%clk 0:02:49]}  a6 {[%clk 0:02:36]} 13. Nc4 {[%clk 0:02:49]}  Be7 {[%clk 0:02:36]} 14. Bg5 {[%clk 0:02:44]}  Bb7 {[%clk 0:02:16]} 15. Bxe7 {[%clk 0:02:40]}  Qxe7 {[%clk 0:02:16]} 16. Rad1 {[%clk 0:02:38]}  Rad8 {[%clk 0:02:15]} 17. Nfe5 {[%clk 0:02:29]}  Nxe5 {[%clk 0:02:15]} 18. Qxe5 {[%clk 0:02:30]}  f6 {[%clk 0:01:24]} 19. Qe2 {[%clk 0:02:28]}  e5 {[%clk 0:01:24]} 20. Na5 {[%clk 0:02:28]}  Ba8 {[%clk 0:01:24]} 21. Qxa6 {[%clk 0:02:27]}  Kh8 {[%clk 0:00:57]} 22. a4 {[%clk 0:02:00]}  Qc7 {[%clk 0:00:45]} 23. Nc4 {[%clk 0:01:54]}  Bc6 {[%clk 0:00:39]} 24. Qa5 {[%clk 0:01:53]}  Qe7 {[%clk 0:00:38]} 25. Qa6 {[%clk 0:01:30]}  Qc7 {[%clk 0:00:35]} 26. Na5 {[%clk 0:01:27]}  Ba8 {[%clk 0:00:30]} 27. Nb3 {[%clk 0:01:26]}  c4 {[%clk 0:00:05]} 28. Qa5 {[%clk 0:01:26]}  Qf7 {[%clk 0:00:04]} 29. Nc5 {[%clk 0:01:23]}  Nf4 {[%clk 0:00:04]} 30. gxf4 {[%clk 0:01:14]}  Qg6 {[%clk 0:00:03]} 31. f3 {[%clk 0:01:14]}  Rxd1 {[%clk 0:00:04]} 32. Rxd1 {[%clk 0:01:15]}  Bxf3 {[%clk 0:00:04]} 33. Rd2 {[%clk 0:01:15]}  Bxg2 {[%clk 0:00:04]} 34. Rxg2 {[%clk 0:01:15]}  Qb1+ {[%clk 0:00:05]} 35. Kf2 {[%clk 0:01:16]}  Qxb2+ {[%clk 0:00:05]} 36. Kf3 {[%clk 0:01:15]}  Qc1 {[%clk 0:00:04]} 37. Ne6 {[%clk 0:01:07]}  Re8 {[%clk 0:00:03]} 38. f5 {[%clk 0:00:58]}  Qf1+ {[%clk 0:00:03]} 39. Rf2 {[%clk 0:00:56]}  Qd3+ {[%clk 0:00:02]} 40. Kg2 {[%clk 0:00:54]}  Qe4+ {[%clk 0:00:03]} 41. Rf3 {[%clk 0:00:55]}  Qg4+ {[%clk 0:00:03]} 42. Kf2 {[%clk 0:00:54]}  Qh4+ {[%clk 0:00:03]} 43. Ke3 {[%clk 0:00:53]}  e4 {[%clk 0:00:02]} 44. Rf4 {[%clk 0:00:51]}  Qe1+ {[%clk 0:00:02]} 45. Kd4 {[%clk 0:00:51]}  Qd2+ {[%clk 0:00:02]} 46. Kc5 {[%clk 0:00:28]}  Rc8+ {[%clk 0:00:03]} 47. Kb6 {[%clk 0:00:18]}  Qd6+ {[%clk 0:00:03]} 48. Kb5 {[%clk 0:00:18]}  Qd5+ {[%clk 0:00:02]} 49. Kb4 {[%clk 0:00:17]}  Qd6+ {[%clk 0:00:02]} 50. Kb5 {[%clk 0:00:14]}  Qd5+ {[%clk 0:00:02]} 51. Kb4 {[%clk 0:00:10]}  Rb8+ {[%clk 0:00:03]} 52. Qb5 {[%clk 0:00:11]}  Rxb5+ {[%clk 0:00:03]} 53. axb5 {[%clk 0:00:12]}  g5 {[%clk 0:00:03]} 54. Rf1 {[%clk 0:00:07]}  e3 {[%clk 0:00:03]} 55. Re1 {[%clk 0:00:06]}  Qd2 {[%clk 0:00:02]} 56. Rb1 {[%clk 0:00:04]}  e2 {[%clk 0:00:02]} 57. b6 {[%clk 0:00:04]}  e1=Q {[%clk 0:00:02]} 58. Rxe1 {[%clk 0:00:04]}  Qxe1 {[%clk 0:00:03]} 59. Kxc4 {[%clk 0:00:02]}  Qe5 {[%clk 0:00:03]} 0-1

[Event "January 9 Early 2024"]
[Site "https://www.chess.com"]
[Date "2024.01.11"]
[Round "8"]
[White "Bonin, Jay"]
[Black "Valle Luis, Leo"]
[Result "0-1"]
[Board "216"]
[TimeControl "180+1"]
[WhiteFideId "2000644"]
[BlackFideId "54577187"]
[WhiteElo "2320"]
[BlackElo "2489"]
[WhiteTeam "USA"]
[BlackTeam "ESP"]
[WhiteClock "0:00:03"]
[BlackClock "0:00:03"]

1. d4 {[%clk 0:02:59]}  Nf6 {[%clk 0:02:59]} 2. Nf3 {[%clk 0:02:58]}  e6 {[%clk 0:03:00]} 3. c4 {[%clk 0:02:58]}  b6 {[%clk 0:02:58]} 4. g3 {[%clk 0:02:56]}  Ba6 {[%clk 0:02:58]} 5. Nbd2 {[%clk 0:02:54]}  Bb4 {[%clk 0:02:52]} 6. Qa4 {[%clk 0:02:52]}  c5 {[%clk 0:02:46]} 7. a3 {[%clk 0:02:51]}  Bxd2+ {[%clk 0:02:36]} 8. Bxd2 {[%clk 0:02:50]}  cxd4 {[%clk 0:02:37]} 9. Bg2 {[%clk 0:02:49]}  Bb7 {[%clk 0:02:37]} 10. O-O {[%clk 0:02:48]}  Bc6 {[%clk 0:02:31]} 11. Qd1 {[%clk 0:02:42]}  O-O {[%clk 0:02:30]} 12. Nxd4 {[%clk 0:02:35]}  Bxg2 {[%clk 0:02:29]} 13. Kxg2 {[%clk 0:02:35]}  Nc6 {[%clk 0:02:24]} 14. Nxc6 {[%clk 0:02:26]}  dxc6 {[%clk 0:02:25]} 15. Bf4 {[%clk 0:02:25]}  Qc8 {[%clk 0:02:19]} 16. Qb3 {[%clk 0:02:16]}  c5 {[%clk 0:02:18]} 17. Qf3 {[%clk 0:02:13]}  Re8 {[%clk 0:02:12]} 18. Be5 {[%clk 0:02:08]}  Nd7 {[%clk 0:02:11]} 19. Bc3 {[%clk 0:02:07]}  e5 {[%clk 0:01:55]} 20. Rad1 {[%clk 0:02:05]}  Nf8 {[%clk 0:01:53]} 21. Rd5 {[%clk 0:02:02]}  f6 {[%clk 0:01:43]} 22. Rfd1 {[%clk 0:02:00]}  Qe6 {[%clk 0:01:43]} 23. b3 {[%clk 0:01:56]}  Rac8 {[%clk 0:01:40]} 24. h4 {[%clk 0:01:53]}  Qe7 {[%clk 0:01:21]} 25. h5 {[%clk 0:01:47]}  Rc7 {[%clk 0:01:20]} 26. e4 {[%clk 0:01:45]}  Ne6 {[%clk 0:01:19]} 27. Qg4 {[%clk 0:01:33]}  Nf8 {[%clk 0:01:08]} 28. h6 {[%clk 0:01:21]}  Qe6 {[%clk 0:00:56]} 29. Qxe6+ {[%clk 0:01:14]}  Nxe6 {[%clk 0:00:57]} 30. hxg7 {[%clk 0:01:13]}  Rxg7 {[%clk 0:00:53]} 31. Kf3 {[%clk 0:01:10]}  Ng5+ {[%clk 0:00:36]} 32. Ke3 {[%clk 0:01:08]}  Rge7 {[%clk 0:00:35]} 33. Rd6 {[%clk 0:01:02]}  Kf7 {[%clk 0:00:34]} 34. R1d5 {[%clk 0:00:54]}  h6 {[%clk 0:00:32]} 35. Kd3 {[%clk 0:00:52]}  Ne6 {[%clk 0:00:31]} 36. b4 {[%clk 0:00:48]}  Rc8 {[%clk 0:00:24]} 37. Rd7 {[%clk 0:00:43]}  Rc7 {[%clk 0:00:21]} 38. Rxc7 {[%clk 0:00:38]}  Rxc7 {[%clk 0:00:22]} 39. f4 {[%clk 0:00:28]}  exf4 {[%clk 0:00:20]} 40. Rf5 {[%clk 0:00:27]}  fxg3 {[%clk 0:00:18]} 41. Rxf6+ {[%clk 0:00:26]}  Ke7 {[%clk 0:00:17]} 42. Rxh6 {[%clk 0:00:25]}  Rd7+ {[%clk 0:00:17]} 43. Ke3 {[%clk 0:00:23]}  g2 {[%clk 0:00:17]} 44. Rg6 {[%clk 0:00:21]}  Rd3+ {[%clk 0:00:15]} 45. Kxd3 {[%clk 0:00:18]}  Nf4+ {[%clk 0:00:15]} 46. Ke3 {[%clk 0:00:18]}  Nxg6 {[%clk 0:00:16]} 47. Kf2 {[%clk 0:00:18]}  Nf4 {[%clk 0:00:14]} 48. Bd2 {[%clk 0:00:15]}  g1=Q+ {[%clk 0:00:04]} 49. Kxg1 {[%clk 0:00:15]}  Ne2+ {[%clk 0:00:04]} 50. Kf2 {[%clk 0:00:15]}  Nd4 {[%clk 0:00:05]} 51. bxc5 {[%clk 0:00:12]}  bxc5 {[%clk 0:00:06]} 52. Be3 {[%clk 0:00:12]}  Ne6 {[%clk 0:00:06]} 53. Ke2 {[%clk 0:00:11]}  a6 {[%clk 0:00:06]} 54. Kd3 {[%clk 0:00:10]}  Kd6 {[%clk 0:00:07]} 55. Bf2 {[%clk 0:00:06]}  Nf4+ {[%clk 0:00:05]} 56. Kc3 {[%clk 0:00:06]}  Ne2+ {[%clk 0:00:05]} 57. Kb3 {[%clk 0:00:05]}  Kc6 {[%clk 0:00:04]} 58. Ka4 {[%clk 0:00:05]}  Nc3+ {[%clk 0:00:04]} 59. Ka5 {[%clk 0:00:05]}  Nxe4 {[%clk 0:00:03]} 60. Bg1 {[%clk 0:00:03]}  Nd6 {[%clk 0:00:02]} 61. Kxa6 {[%clk 0:00:03]}  Nxc4 {[%clk 0:00:03]} 0-1